fUST/lending_fUST_20260607
["ID","MTS","AMOUNT","RATE_DAILY","PERIOD"]
[424369160,1780801556000,-2449.77140226,9.703e-05,2]
[424369161,1780801573000,-1847.29704675,9.703e-05,2]
[424369162,1780801627000,-500.00364558,9.703e-05,2]
[424369164,1780801634000,-3747.90380578,9.703e-05,2]
[424369163,1780801634000,-234.61579492,9.703e-05,2]
[424369165,1780801680000,-500.0,9.703e-05,2]
[424369166,1780801694000,-720.153647,9.703e-05,2]
[424369167,1780801709000,-31.94254722,9.703e-05,2]
[424369201,1780801831000,-1553.06081354,0.00014981,2]
[424369202,1780801831000,-80.9200364,0.00014981,2]
[424369199,1780801831000,-500.22174247,0.0001498,2]
[424369200,1780801831000,-3366.01915006,0.00014981,2]
[424369213,1780801832000,-176.37583699,0.00019496,2]
[424369211,1780801832000,-191.36433871,0.00019496,2]
[424369210,1780801832000,-409.77149445,0.00019123,2]
[424369207,1780801832000,-171.7014605,0.00018425,2]
[424369208,1780801832000,-152.0,0.00019071,7]
[424369204,1780801832000,-503.67290837,0.00017279,2]
[424369206,1780801832000,-614.3438111,0.00018239,2]
[424369205,1780801832000,-452.1004945,0.0001759,2]
[424369203,1780801832000,-187.7674787,0.00015132,2]
[424369209,1780801832000,-312.81320374,0.00019123,2]
[424369214,1780801832000,-174.49646686,0.00019498,2]
[424369212,1780801832000,-164.58852524,0.00019496,2]
[424369216,1780801832000,-162.042,0.00019536,2]
[424369226,1780801832000,-817.33,0.00019599,2]
[424369215,1780801832000,-174.17188762,0.00019498,2]
[424369225,1780801832000,-10540.9826809,0.000196,2]
[424369224,1780801832000,-3421.72534961,0.000196,2]
[424369223,1780801832000,-500.0,0.00019599,2]
[424369227,1780801832000,-248.66630473,0.000196,2]
[424369221,1780801832000,-497.19666538,0.00019599,2]
[424369219,1780801832000,-152.09,0.0001959,3]
[424369218,1780801832000,-2312.43729395,0.00019538,2]
[424369220,1780801832000,-456.27,0.0001959,3]
[424369217,1780801832000,-296.6963292,0.00019538,2]
[424369222,1780801832000,-500.0,0.00019599,2]
[424369256,1780801838000,-500.0,0.00019699,2]
[424369250,1780801838000,-442.50217785,0.000196,2]
[424369252,1780801838000,-4086.83690465,0.000196,2]
[424369251,1780801838000,-735.54773685,0.000196,2]
[424369253,1780801838000,-944047.75526204,0.000196,2]
[424369255,1780801838000,-1233.21,0.00019699,2]
[424369257,1780801838000,-500.0,0.00019699,2]
[424369254,1780801838000,-522.88903273,0.00019638,2]
[424369267,1780801838000,-951.03867934,0.00019699,2]
[424369260,1780801838000,-2287.54,0.00019699,2]
[424369264,1780801838000,-747.11965007,0.00019699,2]
[424369259,1780801838000,-500.0,0.00019699,2]
[424369262,1780801838000,-500.0,0.00019699,2]
[424369263,1780801838000,-3672.30034993,0.00019699,2]
[424369261,1780801838000,-13431.09,0.00019699,2]
[424369265,1780801838000,-500.0,0.00019699,2]
[424369266,1780801838000,-500.0,0.00019699,2]
[424369258,1780801838000,-500.0,0.00019699,2]
[424369289,1780801843000,-500.0,0.00019699,2]
[424369288,1780801843000,-474.04288869,0.00019699,2]
[424369287,1780801843000,-500.0,0.00019699,2]
[424369286,1780801843000,-500.0,0.00019699,2]
[424369284,1780801843000,-892.92,0.00019699,2]
[424369285,1780801843000,-500.0,0.00019699,2]
[424369283,1780801843000,-500.0,0.00019699,2]
[424369280,1780801843000,-230.41132066,0.00019699,2]
[424369292,1780801843000,-3834.67,0.00019699,2]
[424369282,1780801843000,-500.0,0.00019699,2]
[424369296,1780801843000,-500.0,0.00019699,2]
[424369281,1780801843000,-1320.43,0.00019699,2]
[424369298,1780801843000,-1819.68,0.00019699,2]
[424369297,1780801843000,-500.0,0.00019699,2]
[424369303,1780801843000,-2964.69468935,0.00019699,2]
[424369302,1780801843000,-566.47039145,0.00019699,2]
[424369300,1780801843000,-6427.83,0.00019699,2]
[424369299,1780801843000,-4158.51,0.00019699,2]
[424369301,1780801843000,-2566.38,0.00019699,2]
[424369293,1780801843000,-11096.92,0.00019699,2]
[424369294,1780801843000,-1621.66,0.00019699,2]
[424369290,1780801843000,-509.5953992,0.00019699,2]
[424369291,1780801843000,-1484.73,0.00019699,2]
[424369295,1780801843000,-687.75,0.00019699,2]
[424369330,1780801846000,-151.0,0.00019699,2]
[424369325,1780801846000,-663.7149192,0.00019699,2]
[424369327,1780801846000,-1543.39,0.00019699,2]
[424369326,1780801846000,-500.0,0.00019699,2]
[424369329,1780801846000,-151.0,0.00019699,2]
[424369337,1780801846000,-6529.75295409,0.00019699,2]
[424369331,1780801846000,-151.0,0.00019699,2]
[424369335,1780801846000,-151.0,0.00019699,2]
[424369334,1780801846000,-151.0,0.00019699,2]
[424369336,1780801846000,-157.24121,0.00019699,2]
[424369332,1780801846000,-151.0,0.00019699,2]
[424369333,1780801846000,-151.0,0.00019699,2]
[424369328,1780801846000,-151.0,0.00019699,2]
[424369342,1780802136000,-240.14165301,9.702e-05,2]
[424369343,1780802189000,-207.53960643,9.702e-05,2]
[424369345,1780802243000,-300.0,9.702e-05,2]
[424369346,1780802296000,-225.67,9.703e-05,2]
[424369347,1780802349000,-4261.09553866,9.703e-05,2]
[424369349,1780802362000,-152.0,9.703e-05,2]
[424369348,1780802362000,-738.90446134,9.703e-05,2]
[424369351,1780802414000,-300.0,9.896e-05,2]
[424369353,1780802468000,-273.64780029,9.896e-05,2]
[424369354,1780802481000,-26.35219971,9.896e-05,2]
[424369355,1780802533000,-300.0,9.896e-05,2]
[424369357,1780802534000,1234.0,0.00024945,120]
[424369362,1780802931000,-500.0,9.896e-05,2]
[424369363,1780802944000,-500.0,9.896e-05,2]
[424369365,1780802956000,-1276.4426193,9.896e-05,2]
[424369364,1780802956000,-601.20847804,9.896e-05,2]
[424369366,1780802969000,-601.20847804,9.89e-05,2]
[424369367,1780802969000,-123.79152196,9.89e-05,2]
[424369368,1780802969000,-297.7264514,9.896e-05,2]
[424369370,1780802974000,-600.55068685,0.0001,2]
[424369371,1780802974000,-218.51663288,0.0001,2]
[424369372,1780802974000,-599.92283945,0.0001,2]
[424369369,1780802974000,-4702.2735486,9.896e-05,2]
[424369427,1780803038000,-500.0,0.00018703,2]
[424369416,1780803038000,-600.0,0.00018638,2]
[424369418,1780803038000,-500.0,0.00018703,2]
[424369419,1780803038000,-500.0,0.00018703,2]
[424369426,1780803038000,-500.0,0.00018703,2]
[424369425,1780803038000,-500.0,0.00018703,2]
[424369421,1780803038000,-500.0,0.00018703,2]
[424369424,1780803038000,-500.0,0.00018703,2]
[424369420,1780803038000,-500.0,0.00018703,2]
[424369428,1780803038000,-500.0,0.00018703,2]
[424369423,1780803038000,-500.0,0.00018703,2]
[424369417,1780803038000,-388.95225365,0.00018693,2]
[424369429,1780803038000,-500.0,0.00018703,2]
[424369431,1780803038000,-500.0,0.00018703,2]
[424369430,1780803038000,-500.0,0.00018703,2]
[424369433,1780803038000,-500.0,0.00018703,2]
[424369437,1780803038000,-500.0,0.00018703,2]
[424369432,1780803038000,-500.0,0.00018703,2]
[424369441,1780803038000,-152.0,0.00018809,7]
[424369422,1780803038000,-500.0,0.00018703,2]
[424369415,1780803038000,-419.83,0.0001863,2]
[424369414,1780803038000,-300.0,0.00018565,2]
[424369439,1780803038000,-500.0,0.00018703,2]
[424369393,1780803038000,-5000.0,9.896e-05,2]
[424369398,1780803038000,-373.50260881,0.0001856,2]
[424369395,1780803038000,-186.75130441,0.00017717,2]
[424369394,1780803038000,-178.6945986,0.0001,2]
[424369396,1780803038000,-1000.0,0.00017917,2]
[424369397,1780803038000,-6777.7755817,0.00018202,2]
[424369401,1780803038000,-300.0,0.00018565,2]
[424369399,1780803038000,-606.63850439,0.00018564,2]
[424369400,1780803038000,-300.0,0.00018565,2]
[424369403,1780803038000,-300.0,0.00018565,2]
[424369402,1780803038000,-300.0,0.00018565,2]
[424369407,1780803038000,-300.0,0.00018565,2]
[424369404,1780803038000,-300.0,0.00018565,2]
[424369405,1780803038000,-300.0,0.00018565,2]
[424369409,1780803038000,-300.0,0.00018565,2]
[424369406,1780803038000,-300.0,0.00018565,2]
[424369408,1780803038000,-300.0,0.00018565,2]
[424369411,1780803038000,-300.0,0.00018565,2]
[424369412,1780803038000,-300.0,0.00018565,2]
[424369413,1780803038000,-300.0,0.00018565,2]
[424369435,1780803038000,-500.0,0.00018703,2]
[424369410,1780803038000,-300.0,0.00018565,2]
[424369440,1780803038000,-500.0,0.00018703,2]
[424369468,1780803038000,-13600.0,0.00019178,2]
[424369466,1780803038000,-500.0,0.00019178,2]
[424369467,1780803038000,-626.71,0.00019178,2]
[424369459,1780803038000,-500.0,0.00019178,2]
[424369465,1780803038000,-6397.38,0.00019178,2]
[424369470,1780803038000,-221.42736377,0.00019178,2]
[424369469,1780803038000,-10122.83,0.00019178,2]
[424369472,1780803038000,-500.0,0.00019178,2]
[424369471,1780803038000,-6619.74,0.00019178,2]
[424369464,1780803038000,-500.0,0.00019178,2]
[424369482,1780803038000,-500.0,0.00019178,2]
[424369475,1780803038000,-500.0,0.00019178,2]
[424369477,1780803038000,-500.0,0.00019178,2]
[424369481,1780803038000,-500.0,0.00019178,2]
[424369478,1780803038000,-500.0,0.00019178,2]
[424369474,1780803038000,-500.0,0.00019178,2]
[424369476,1780803038000,-500.0,0.00019178,2]
[424369480,1780803038000,-14144.76,0.00019178,2]
[424369483,1780803038000,-500.0,0.00019178,2]
[424369438,1780803038000,-556.07249584,0.00018703,2]
[424369479,1780803038000,-3674.89,0.00019178,2]
[424369460,1780803038000,-7980.3,0.00019178,2]
[424369473,1780803038000,-500.0,0.00019178,2]
[424369463,1780803038000,-822.14,0.00019178,2]
[424369434,1780803038000,-500.0,0.00018703,2]
[424369462,1780803038000,-976.44,0.00019178,2]
[424369436,1780803038000,-500.0,0.00018703,2]
[424369443,1780803038000,-500.0,0.00018977,2]
[424369442,1780803038000,-419.83,0.00018904,2]
[424369444,1780803038000,-292.96009336,0.00018987,2]
[424369446,1780803038000,-180.58622458,0.00019078,2]
[424369447,1780803038000,-560.25391322,0.00019122,2]
[424369448,1780803038000,-180.58622457,0.00019139,2]
[424369453,1780803038000,-500.0,0.00019178,2]
[424369445,1780803038000,-2024.0,0.00019,2]
[424369449,1780803038000,-304.18,0.00019168,3]
[424369450,1780803038000,-2245.78,0.00019178,2]
[424369454,1780803038000,-4020.09,0.00019178,2]
[424369452,1780803038000,-500.0,0.00019178,2]
[424369457,1780803038000,-1322.05,0.00019178,2]
[424369455,1780803038000,-248.97240642,0.00019178,2]
[424369456,1780803038000,-7633.79,0.00019178,2]
[424369458,1780803038000,-491.96855894,0.00019178,2]
[424369451,1780803038000,-550.12,0.00019178,2]
[424369461,1780803038000,-500.0,0.00019178,2]
[424369514,1780803039000,-419.83,0.00019178,2]
[424369524,1780803039000,-151.5,0.00019251,2]
[424369518,1780803039000,-500.0,0.0001925,2]
[424369517,1780803039000,-155.52652587,0.00019225,2]
[424369522,1780803039000,-500.0,0.00019251,2]
[424369515,1780803039000,-180.58622457,0.000192,2]
[424369521,1780803039000,-526.69,0.0001925,2]
[424369516,1780803039000,-159.8047406,0.00019225,2]
[424369519,1780803039000,-500.0,0.0001925,2]
[424369523,1780803039000,-284.90721039,0.00019251,2]
[424369520,1780803039000,-500.0,0.0001925,2]
[424369525,1780803039000,-151.5,0.00019251,2]
[424369533,1780803039000,-208.5323743,0.00019251,2]
[424369527,1780803039000,-151.5,0.00019251,2]
[424369526,1780803039000,-218.55433584,0.00019251,2]
[424369529,1780803039000,-201.1840783,0.00019251,2]
[424369528,1780803039000,-151.5,0.00019251,2]
[424369532,1780803039000,-151.5,0.00019251,2]
[424369531,1780803039000,-151.5,0.00019251,2]
[424369535,1780803039000,-201.09034158,0.00019251,2]
[424369534,1780803039000,-151.5,0.00019251,2]
[424369536,1780803039000,-171.602,0.00019251,2]
[424369538,1780803039000,-500.0,0.00019269,2]
[424369512,1780803039000,-500.0,0.00019178,2]
[424369537,1780803039000,-180.58622457,0.0001926,2]
[424369530,1780803039000,-223.05544451,0.00019251,2]
[424369513,1780803039000,-500.0,0.00019178,2]
[424369490,1780803039000,-1265.41,0.00019178,2]
[424369511,1780803039000,-155.91741083,0.00019178,2]
[424369539,1780803039000,-1206.99326479,0.00019269,2]
[424369484,1780803039000,-500.0,0.00019178,2]
[424369485,1780803039000,-369.72870309,0.00019178,2]
[424369487,1780803039000,-500.0,0.00019178,2]
[424369486,1780803039000,-500.0,0.00019178,2]
[424369496,1780803039000,-500.0,0.00019178,2]
[424369488,1780803039000,-1743.86,0.00019178,2]
[424369493,1780803039000,-500.0,0.00019178,2]
[424369489,1780803039000,-1181.83,0.00019178,2]
[424369495,1780803039000,-500.0,0.00019178,2]
[424369494,1780803039000,-500.0,0.00019178,2]
[424369492,1780803039000,-6160.0,0.00019178,2]
[424369510,1780803039000,-561.82,0.00019178,2]
[424369491,1780803039000,-10801.22,0.00019178,2]
[424369498,1780803039000,-500.0,0.00019178,2]
[424369499,1780803039000,-936.49,0.00019178,2]
[424369501,1780803039000,-500.0,0.00019178,2]
[424369500,1780803039000,-659.09,0.00019178,2]
[424369502,1780803039000,-1520.15,0.00019178,2]
[424369509,1780803039000,-500.0,0.00019178,2]
[424369503,1780803039000,-500.0,0.00019178,2]
[424369505,1780803039000,-783.27,0.00019178,2]
[424369506,1780803039000,-522.02,0.00019178,2]
[424369507,1780803039000,-1177.37,0.00019178,2]
[424369504,1780803039000,-500.0,0.00019178,2]
[424369508,1780803039000,-4166.66,0.00019178,2]
[424369497,1780803039000,-500.0,0.00019178,2]
[424369540,1780803039000,-180.13701722,0.000193,2]
[424369561,1780803039000,-13600.0,0.00019452,2]
[424369545,1780803039000,-353.84960746,0.00019397,2]
[424369570,1780803039000,-500.0,0.00019452,2]
[424369572,1780803039000,-14144.76,0.00019452,2]
[424369571,1780803039000,-3674.89,0.00019452,2]
[424369576,1780803039000,-500.0,0.00019452,2]
[424369578,1780803039000,-500.0,0.00019452,2]
[424369577,1780803039000,-541.2381865,0.00019452,2]
[424369579,1780803039000,-1743.86,0.00019452,2]
[424369585,1780803039000,-659.09,0.00019452,2]
[424369586,1780803039000,-393.02369893,0.00019452,2]
[424369581,1780803039000,-1265.41,0.00019452,2]
[424369582,1780803039000,-10801.22,0.00019452,2]
[424369583,1780803039000,-6160.0,0.00019452,2]
[424369569,1780803039000,-500.0,0.00019452,2]
[424369584,1780803039000,-936.49,0.00019452,2]
[424369589,1780803039000,-500.0,0.00019452,2]
[424369590,1780803039000,-500.0,0.00019452,2]
[424369588,1780803039000,-1520.15,0.00019452,2]
[424369593,1780803039000,-1177.37,0.00019452,2]
[424369591,1780803039000,-783.27,0.00019452,2]
[424369592,1780803039000,-522.02,0.00019452,2]
[424369594,1780803039000,-4166.66,0.00019452,2]
[424369597,1780803039000,-500.0,0.00019452,2]
[424369596,1780803039000,-151.0,0.00019452,2]
[424369598,1780803039000,-561.82,0.00019452,2]
[424369546,1780803039000,-2245.78,0.00019452,2]
[424369595,1780803039000,-151.0,0.00019452,2]
[424369587,1780803039000,-27.22675928,0.00019452,2]
[424369575,1780803039000,-500.0,0.00019452,2]
[424369580,1780803039000,-1181.83,0.00019452,2]
[424369573,1780803039000,-500.0,0.00019452,2]
[424369541,1780803039000,-228.75845581,0.00019304,7]
[424369574,1780803039000,-500.0,0.00019452,2]
[424369543,1780803039000,-500.0,0.00019397,2]
[424369542,1780803039000,-180.58622457,0.00019321,2]
[424369548,1780803039000,-500.0,0.00019452,2]
[424369547,1780803039000,-550.12,0.00019452,2]
[424369550,1780803039000,-7633.79,0.00019452,2]
[424369549,1780803039000,-4020.09,0.00019452,2]
[424369551,1780803039000,-1322.05,0.00019452,2]
[424369553,1780803039000,-7980.3,0.00019452,2]
[424369552,1780803039000,-500.0,0.00019452,2]
[424369554,1780803039000,-500.0,0.00019452,2]
[424369555,1780803039000,-976.44,0.00019452,2]
[424369544,1780803039000,-500.0,0.00019397,2]
[424369558,1780803039000,-6397.38,0.00019452,2]
[424369556,1780803039000,-500.0,0.00019452,2]
[424369568,1780803039000,-500.0,0.00019452,2]
[424369565,1780803039000,-500.0,0.00019452,2]
[424369566,1780803039000,-500.0,0.00019452,2]
[424369563,1780803039000,-6619.74,0.00019452,2]
[424369564,1780803039000,-500.0,0.00019452,2]
[424369567,1780803039000,-500.0,0.00019452,2]
[424369559,1780803039000,-500.0,0.00019452,2]
[424369562,1780803039000,-10122.83,0.00019452,2]
[424369557,1780803039000,-822.14,0.00019452,2]
[424369560,1780803039000,-626.71,0.00019452,2]
[424369633,1780803040000,-7756.619658,0.00019497,2]
[424369632,1780803040000,-8312.5,0.00019497,2]
[424369636,1780803040000,-989.46,0.00019497,2]
[424369628,1780803040000,-1409.705144,0.00019497,2]
[424369634,1780803040000,-204.677298,0.00019497,2]
[424369635,1780803040000,-500.0,0.00019497,2]
[424369637,1780803040000,-1075.35,0.00019497,2]
[424369638,1780803040000,-500.0,0.00019497,2]
[424369639,1780803040000,-589.75,0.00019497,2]
[424369640,1780803040000,-542.40498313,0.00019497,2]
[424369641,1780803040000,-500.0,0.00019497,2]
[424369649,1780803040000,-500.0,0.00019497,2]
[424369642,1780803040000,-2360.56,0.00019497,2]
[424369647,1780803040000,-1783.56,0.00019497,2]
[424369648,1780803040000,-2329.51,0.00019497,2]
[424369646,1780803040000,-500.0,0.00019497,2]
[424369645,1780803040000,-500.0,0.00019497,2]
[424369644,1780803040000,-500.0,0.00019497,2]
[424369651,1780803040000,-4175.97,0.00019497,2]
[424369663,1780803040000,-500.0,0.00019497,2]
[424369653,1780803040000,-2756.03,0.00019497,2]
[424369655,1780803040000,-500.0,0.00019497,2]
[424369657,1780803040000,-500.0,0.00019497,2]
[424369652,1780803040000,-183.46731447,0.00019497,2]
[424369631,1780803040000,-587.88755369,0.00019497,2]
[424369650,1780803040000,-500.0,0.00019497,2]
[424369630,1780803040000,-500.0,0.00019497,2]
[424369599,1780803040000,-500.0,0.00019452,2]
[424369629,1780803040000,-522.14504713,0.00019497,2]
[424369656,1780803040000,-500.0,0.00019497,2]
[424369601,1780803040000,-172.83086233,0.00019466,2]
[424369602,1780803040000,-174.48315224,0.00019496,2]
[424369603,1780803040000,-208.60261535,0.00019496,2]
[424369600,1780803040000,-419.83,0.00019452,2]
[424369608,1780803040000,-540.08,0.00019497,2]
[424369612,1780803040000,-500.0,0.00019497,2]
[424369609,1780803040000,-500.0,0.00019497,2]
[424369605,1780803040000,-747.00521763,0.00019496,2]
[424369611,1780803040000,-556.37,0.00019497,2]
[424369607,1780803040000,-319.67548231,0.00019496,2]
[424369610,1780803040000,-580.84943965,0.00019497,2]
[424369627,1780803040000,-837.945105,0.00019497,2]
[424369613,1780803040000,-500.0,0.00019497,2]
[424369625,1780803040000,-500.0,0.00019497,2]
[424369618,1780803040000,-500.0,0.00019497,2]
[424369614,1780803040000,-1567.06,0.00019497,2]
[424369616,1780803040000,-2971.42,0.00019497,2]
[424369626,1780803040000,-679.27,0.00019497,2]
[424369617,1780803040000,-500.0,0.00019497,2]
[424369621,1780803040000,-500.0,0.00019497,2]
[424369619,1780803040000,-501.17251582,0.00019497,2]
[424369622,1780803040000,-500.0,0.00019497,2]
[424369620,1780803040000,-4525.85,0.00019497,2]
[424369623,1780803040000,-500.0,0.00019497,2]
[424369624,1780803040000,-500.0,0.00019497,2]
[424369615,1780803040000,-1773.21,0.00019497,2]
[424369654,1780803040000,-533.76576092,0.00019497,2]
[424369643,1780803040000,-1384.24,0.00019497,2]
[424369659,1780803040000,-500.0,0.00019497,2]
[424369692,1780803040000,-500.0,0.00019497,2]
[424369693,1780803040000,-94148.88,0.00019497,2]
[424369695,1780803040000,-523.60502415,0.00019497,2]
[424369694,1780803040000,-500.0,0.00019497,2]
[424369697,1780803040000,-500.0,0.00019497,2]
[424369696,1780803040000,-500.0,0.00019497,2]
[424369703,1780803040000,-500.0,0.00019497,2]
[424369706,1780803040000,-500.0,0.00019497,2]
[424369707,1780803040000,-500.0,0.00019497,2]
[424369704,1780803040000,-500.0,0.00019497,2]
[424369705,1780803040000,-500.0,0.00019497,2]
[424369699,1780803040000,-500.0,0.00019497,2]
[424369691,1780803040000,-521.25,0.00019497,2]
[424369702,1780803040000,-500.0,0.00019497,2]
[424369700,1780803040000,-500.0,0.00019497,2]
[424369709,1780803040000,-500.0,0.00019497,2]
[424369713,1780803040000,-500.0,0.00019497,2]
[424369708,1780803040000,-500.0,0.00019497,2]
[424369714,1780803040000,-500.0,0.00019497,2]
[424369715,1780803040000,-500.0,0.00019497,2]
[424369716,1780803040000,-279.42872094,0.00019497,2]
[424369717,1780803040000,-200.0,0.00019497,3]
[424369710,1780803040000,-500.0,0.00019497,2]
[424369711,1780803040000,-763.19,0.00019497,2]
[424369712,1780803040000,-500.0,0.00019497,2]
[424369658,1780803040000,-500.0,0.00019497,2]
[424369698,1780803040000,-855.71,0.00019497,2]
[424369690,1780803040000,-2192.22,0.00019497,2]
[424369701,1780803040000,-500.0,0.00019497,2]
[424369688,1780803040000,-500.0,0.00019497,2]
[424369689,1780803040000,-2459.45,0.00019497,2]
[424369661,1780803040000,-1330.1,0.00019497,2]
[424369662,1780803040000,-500.0,0.00019497,2]
[424369664,1780803040000,-1346.26,0.00019497,2]
[424369666,1780803040000,-500.0,0.00019497,2]
[424369676,1780803040000,-500.0,0.00019497,2]
[424369665,1780803040000,-908.7,0.00019497,2]
[424369675,1780803040000,-500.0,0.00019497,2]
[424369667,1780803040000,-514.27388879,0.00019497,2]
[424369668,1780803040000,-5005.4,0.00019497,2]
[424369671,1780803040000,-1188.73,0.00019497,2]
[424369672,1780803040000,-1686.93,0.00019497,2]
[424369670,1780803040000,-500.0,0.00019497,2]
[424369669,1780803040000,-2415.99,0.00019497,2]
[424369660,1780803040000,-500.0,0.00019497,2]
[424369685,1780803040000,-500.0,0.00019497,2]
[424369674,1780803040000,-1043.31,0.00019497,2]
[424369677,1780803040000,-1591.06,0.00019497,2]
[424369679,1780803040000,-500.0,0.00019497,2]
[424369678,1780803040000,-486.77051088,0.00019497,2]
[424369681,1780803040000,-1422.87,0.00019497,2]
[424369680,1780803040000,-500.0,0.00019497,2]
[424369683,1780803040000,-500.0,0.00019497,2]
[424369682,1780803040000,-500.0,0.00019497,2]
[424369673,1780803040000,-1370.69,0.00019497,2]
[424369684,1780803040000,-593.29,0.00019497,2]
[424369686,1780803040000,-815.79,0.00019497,2]
[424369687,1780803040000,-500.0,0.00019497,2]
[424369754,1780803041000,-500.0,0.00019499,2]
[424369755,1780803041000,-500.0,0.00019499,2]
[424369746,1780803041000,-648.81,0.00019499,2]
[424369763,1780803041000,-608.37,0.00019499,2]
[424369758,1780803041000,-2577.54,0.00019499,2]
[424369752,1780803041000,-500.0,0.00019499,2]
[424369748,1780803041000,-1046.3,0.00019499,2]
[424369753,1780803041000,-1690.94,0.00019499,2]
[424369756,1780803041000,-500.0,0.00019499,2]
[424369751,1780803041000,-500.0,0.00019499,2]
[424369749,1780803041000,-250.47681664,0.00019499,2]
[424369759,1780803041000,-500.0,0.00019499,2]
[424369750,1780803041000,-500.0,0.00019499,2]
[424369761,1780803041000,-500.0,0.00019499,2]
[424369769,1780803041000,-500.0,0.00019499,2]
[424369762,1780803041000,-500.0,0.00019499,2]
[424369765,1780803041000,-500.0,0.00019499,2]
[424369768,1780803041000,-500.0,0.00019499,2]
[424369767,1780803041000,-500.0,0.00019499,2]
[424369764,1780803041000,-500.0,0.00019499,2]
[424369766,1780803041000,-500.0,0.00019499,2]
[424369770,1780803041000,-648.19,0.00019499,2]
[424369781,1780803041000,-212.1453718,0.00019499,2]
[424369771,1780803041000,-500.0,0.00019499,2]
[424369772,1780803041000,-805.94,0.00019499,2]
[424369773,1780803041000,-537.77,0.00019499,2]
[424369777,1780803041000,-500.0,0.00019499,2]
[424369760,1780803041000,-500.0,0.00019499,2]
[424369757,1780803041000,-500.0,0.00019499,2]
[424369718,1780803041000,-200.0,0.00019497,3]
[424369744,1780803041000,-500.0,0.00019499,2]
[424369775,1780803041000,-500.0,0.00019499,2]
[424369720,1780803041000,-3650.41,0.00019497,2]
[424369719,1780803041000,-200.0,0.00019497,3]
[424369721,1780803041000,-200.0,0.00019497,3]
[424369722,1780803041000,-200.0,0.00019497,3]
[424369724,1780803041000,-500.0,0.00019497,2]
[424369723,1780803041000,-200.0,0.00019497,3]
[424369726,1780803041000,-525.67548391,0.00019497,2]
[424369728,1780803041000,-502.87575841,0.00019497,2]
[424369727,1780803041000,-19286.76,0.00019497,2]
[424369725,1780803041000,-1343.86,0.00019497,2]
[424369729,1780803041000,-500.0,0.00019497,2]
[424369730,1780803041000,-151.0,0.00019497,2]
[424369731,1780803041000,-151.0,0.00019497,2]
[424369732,1780803041000,-211.55747055,0.00019498,2]
[424369736,1780803041000,-500.0,0.00019499,2]
[424369734,1780803041000,-8392.62,0.00019498,2]
[424369733,1780803041000,-2566.19,0.00019498,2]
[424369738,1780803041000,-500.0,0.00019499,2]
[424369745,1780803041000,-1402.92,0.00019499,2]
[424369739,1780803041000,-851.93,0.00019499,2]
[424369742,1780803041000,-500.0,0.00019499,2]
[424369737,1780803041000,-500.0,0.00019499,2]
[424369735,1780803041000,-4194.6159,0.00019498,2]
[424369740,1780803041000,-575.96272345,0.00019499,2]
[424369743,1780803041000,-500.0,0.00019499,2]
[424369741,1780803041000,-500.0,0.00019499,2]
[424369747,1780803041000,-631.2,0.00019499,2]
[424369774,1780803041000,-500.0,0.00019499,2]
[424369776,1780803041000,-500.0,0.00019499,2]
[424369779,1780803041000,-500.0,0.00019499,2]